[Event "*** Titled Tuesday Blitz"]
[Site "Chess.com"]
[Date "2020.04.14"]
[Round "9"]
[White "claudyna16"]
[Black "keepitcool9499"]
[Result "1-0"]
[WhiteElo "2511"]
[BlackElo "2284"]
[TimeControl "180+1"]
[EndTime "11:43:16 PDT"]
[Termination "claudyna16 won by checkmate"]

1. c4 {[%clk 0:03:00.9]} 1... e6 {[%clk 0:02:59.9]} 2. g3 {[%clk 0:03:01.2]}
2... d5 {[%clk 0:03:00.2]} 3. Bg2 {[%clk 0:03:01.7]} 3... Nf6 {[%clk 0:03:00.4]}
4. Nf3 {[%clk 0:03:02.4]} 4... Be7 {[%clk 0:03:00.8]} 5. O-O {[%clk 0:03:03]}
5... O-O {[%clk 0:03:01.3]} 6. b3 {[%clk 0:03:03.1]} 6... Nbd7 {[%clk
0:03:01.7]} 7. Bb2 {[%clk 0:03:02.9]} 7... b6 {[%clk 0:03:02.2]} 8. d3 {[%clk
0:03:01.3]} 8... Bb7 {[%clk 0:03:02.2]} 9. Nbd2 {[%clk 0:03:01.9]} 9... c5
{[%clk 0:03:02.5]} 10. Re1 {[%clk 0:02:59.3]} 10... d4 {[%clk 0:03:02.1]} 11. e3
{[%clk 0:02:58.1]} 11... dxe3 {[%clk 0:03:01.9]} 12. fxe3 {[%clk 0:02:56.1]}
12... Qc7 {[%clk 0:03:01.1]} 13. Qe2 {[%clk 0:02:56.1]} 13... Rad8 {[%clk
0:02:59.4]} 14. Rad1 {[%clk 0:02:56.6]} 14... Ng4 {[%clk 0:02:56.6]} 15. h3
{[%clk 0:02:22.7]} 15... Ngf6 {[%clk 0:02:46.1]} 16. Nf1 {[%clk 0:02:20.8]}
16... Nh5 {[%clk 0:02:42.3]} 17. g4 {[%clk 0:01:38.4]} 17... Ng3 {[%clk
0:02:37.9]} 18. Nxg3 {[%clk 0:01:38]} 18... Qxg3 {[%clk 0:02:38.7]} 19. Qf2
{[%clk 0:01:37.5]} 19... Qxf2+ {[%clk 0:02:36.8]} 20. Kxf2 {[%clk 0:01:38.4]}
20... Bf6 {[%clk 0:02:36.6]} 21. d4 {[%clk 0:01:36.4]} 21... cxd4 {[%clk
0:02:35]} 22. exd4 {[%clk 0:01:37.3]} 22... g6 {[%clk 0:02:26.3]} 23. Re2 {[%clk
0:01:32.4]} 23... Nc5 {[%clk 0:02:18.7]} 24. Ne1 {[%clk 0:01:14]} 24... Bxg2
{[%clk 0:02:12]} 25. Nxg2 {[%clk 0:01:14.9]} 25... Rd7 {[%clk 0:02:02.7]} 26.
dxc5 {[%clk 0:00:53.3]} 26... Rxd1 {[%clk 0:01:42.7]} 27. Bxf6 {[%clk
0:00:53.1]} 27... bxc5 {[%clk 0:01:42.6]} 28. Ne3 {[%clk 0:00:49]} 28... Rh1
{[%clk 0:01:41.3]} 29. Kg2 {[%clk 0:00:48.4]} 29... Rc1 {[%clk 0:01:35.3]} 30.
g5 {[%clk 0:00:48.6]} 30... h6 {[%clk 0:01:32.1]} 31. h4 {[%clk 0:00:46.6]}
31... Kh7 {[%clk 0:01:29.8]} 32. Ng4 {[%clk 0:00:46.5]} 32... Rd1 {[%clk
0:01:25.7]} 33. Nxh6 {[%clk 0:00:45.2]} 33... a5 {[%clk 0:01:22.8]} 34. Ng4
{[%clk 0:00:35.9]} 34... a4 {[%clk 0:01:14.8]} 35. Be7 {[%clk 0:00:34]} 35...
Rb8 {[%clk 0:01:12.2]} 36. Bxc5 {[%clk 0:00:31.7]} 36... axb3 {[%clk 0:01:11.8]}
37. axb3 {[%clk 0:00:32.4]} 37... Rxb3 {[%clk 0:01:12.2]} 38. Rf2 {[%clk
0:00:32.2]} 38... Kg7 {[%clk 0:01:07.8]} 39. Be7 {[%clk 0:00:29.7]} 39... Rc1
{[%clk 0:00:58]} 40. c5 {[%clk 0:00:29.8]} 40... Rc4 {[%clk 0:00:55.5]} 41. Ne5
{[%clk 0:00:29.3]} 41... Rb7 {[%clk 0:00:30]} 42. Rxf7+ {[%clk 0:00:27.3]} 42...
Kg8 {[%clk 0:00:30.1]} 43. Rf8+ {[%clk 0:00:27.6]} 43... Kg7 {[%clk 0:00:29.5]}
44. Nxc4 {[%clk 0:00:27.7]} 44... Rxe7 {[%clk 0:00:28.5]} 45. Rf6 {[%clk
0:00:26]} 45... Rc7 {[%clk 0:00:27.9]} 46. Ne5 {[%clk 0:00:26.6]} 46... Rxc5
{[%clk 0:00:27]} 47. Rxg6+ {[%clk 0:00:26.7]} 47... Kh7 {[%clk 0:00:21.8]} 48.
Rxe6 {[%clk 0:00:27.6]} 48... Rc2+ {[%clk 0:00:20.5]} 49. Kf3 {[%clk 0:00:27.4]}
49... Rc3+ {[%clk 0:00:20.8]} 50. Kg4 {[%clk 0:00:27.8]} 50... Re3 {[%clk
0:00:20.6]} 51. h5 {[%clk 0:00:27.8]} 51... Kg7 {[%clk 0:00:18.8]} 52. h6+
{[%clk 0:00:28]} 52... Kh8 {[%clk 0:00:16.9]} 53. Ng6+ {[%clk 0:00:27.6]} 53...
Kh7 {[%clk 0:00:15.9]} 54. Rxe3 {[%clk 0:00:28.5]} 54... Kg8 {[%clk 0:00:15.8]}
55. Nh4 {[%clk 0:00:25.1]} 55... Kh7 {[%clk 0:00:16.7]} 56. Kh5 {[%clk
0:00:24.8]} 56... Kg8 {[%clk 0:00:16.2]} 57. g6 {[%clk 0:00:25.3]} 57... Kf8
{[%clk 0:00:16.5]} 58. Re4 {[%clk 0:00:25.7]} 58... Kg8 {[%clk 0:00:16.1]} 59.
Re8# {[%clk 0:00:26.2]} 1-0

[Event "*** Titled Tuesday Blitz"]
[Site "Chess.com"]
[Date "2020.04.14"]
[Round "9"]
[White "tvjosue"]
[Black "W_Amadeus"]
[Result "0-1"]
[WhiteElo "2517"]
[BlackElo "2709"]
[TimeControl "180+1"]
[EndTime "11:43:19 PDT"]
[Termination "W_Amadeus won by resignation"]

1. b3 {[%clk 0:03:00.9]} 1... e5 {[%clk 0:02:55.5]} 2. Bb2 {[%clk 0:03:00.5]}
2... Nc6 {[%clk 0:02:55.8]} 3. c4 {[%clk 0:03:00.7]} 3... Nf6 {[%clk 0:02:53.3]}
4. e3 {[%clk 0:03:01.1]} 4... d5 {[%clk 0:02:52.6]} 5. cxd5 {[%clk 0:03:02]}
5... Nxd5 {[%clk 0:02:53.2]} 6. a3 {[%clk 0:03:02.9]} 6... Bd6 {[%clk
0:02:47.3]} 7. Qc2 {[%clk 0:03:00.5]} 7... O-O {[%clk 0:02:46.5]} 8. Nf3 {[%clk
0:03:00.2]} 8... Qe7 {[%clk 0:02:42]} 9. h4 {[%clk 0:02:57.7]} 9... h6 {[%clk
0:01:47.8]} 10. b4 {[%clk 0:02:39.3]} 10... a6 {[%clk 0:01:38.8]} 11. Bc4 {[%clk
0:02:37.4]} 11... Be6 {[%clk 0:01:36.2]} 12. Qb3 {[%clk 0:02:00.4]} 12... e4
{[%clk 0:01:12.9]} 13. Bxd5 {[%clk 0:01:54]} 13... exf3 {[%clk 0:01:12.1]} 14.
gxf3 {[%clk 0:01:51.4]} 14... Be5 {[%clk 0:01:03.9]} 15. Nc3 {[%clk 0:01:47.2]}
15... Rad8 {[%clk 0:00:34.7]} 16. O-O-O {[%clk 0:01:45.3]} 16... Bxd5 {[%clk
0:00:30.4]} 17. Nxd5 {[%clk 0:01:42.8]} 17... Qe6 {[%clk 0:00:15.6]} 18. e4
{[%clk 0:01:19.8]} 18... Nd4 {[%clk 0:00:10.1]} 19. Bxd4 {[%clk 0:01:19.2]}
19... Bxd4 {[%clk 0:00:11]} 20. Qd3 {[%clk 0:01:12.5]} 20... c6 {[%clk
0:00:11.2]} 21. Qxd4 {[%clk 0:00:49.1]} 21... cxd5 {[%clk 0:00:11.6]} 22. Rhg1
{[%clk 0:00:44]} 22... f6 {[%clk 0:00:11.9]} 23. exd5 {[%clk 0:00:36.9]} 23...
Rxd5 {[%clk 0:00:12.8]} 24. Qg4 {[%clk 0:00:36.8]} 24... Qf7 {[%clk 0:00:06.1]}
25. d4 {[%clk 0:00:34.6]} 25... Rfd8 {[%clk 0:00:05.9]} 26. Qe4 {[%clk
0:00:32.1]} 26... f5 {[%clk 0:00:05]} 27. Qe3 {[%clk 0:00:30.6]} 27... R5d6
{[%clk 0:00:03.8]} 28. Rge1 {[%clk 0:00:28.3]} 28... Qc4+ {[%clk 0:00:02.7]} 29.
Kb1 {[%clk 0:00:23.3]} 29... Rxd4 {[%clk 0:00:03]} 30. Rxd4 {[%clk 0:00:23.3]}
30... Rxd4 {[%clk 0:00:03.9]} 31. Rc1 {[%clk 0:00:20.5]} 31... Qd5 {[%clk
0:00:02]} 32. h5 {[%clk 0:00:15.4]} 32... Kh7 {[%clk 0:00:02]} 33. Qc3 {[%clk
0:00:11.4]} 33... Rd3 {[%clk 0:00:02]} 34. Qc4 {[%clk 0:00:09.9]} 34... Rb3+
{[%clk 0:00:02.2]} 35. Ka2 {[%clk 0:00:09]} 35... Qxc4 {[%clk 0:00:02.7]} 36.
Rxc4 {[%clk 0:00:09.9]} 36... Rxf3 {[%clk 0:00:03.3]} 37. Rc7 {[%clk 0:00:10.6]}
37... Rxf2+ {[%clk 0:00:03.5]} 38. Kb3 {[%clk 0:00:10.7]} 38... Rh2 {[%clk
0:00:02.6]} 39. Rxb7 {[%clk 0:00:11.6]} 39... Rxh5 {[%clk 0:00:03.1]} 40. Rb6
{[%clk 0:00:12.3]} 40... f4 {[%clk 0:00:03.6]} 41. Rxa6 {[%clk 0:00:13.2]} 41...
f3 {[%clk 0:00:03.6]} 42. Rc6 {[%clk 0:00:12.5]} 42... Rf5 {[%clk 0:00:03.6]}
43. Rc1 {[%clk 0:00:12.7]} 43... f2 {[%clk 0:00:03.9]} 44. Rf1 {[%clk
0:00:12.9]} 44... g5 {[%clk 0:00:04.5]} 45. b5 {[%clk 0:00:13.4]} 45... g4
{[%clk 0:00:05.1]} 46. b6 {[%clk 0:00:13.6]} 46... g3 {[%clk 0:00:05.7]} 0-1

[Event "*** Titled Tuesday Blitz"]
[Site "Chess.com"]
[Date "2020.04.14"]
[Round "9"]
[White "vasblesk"]
[Black "josiwales"]
[Result "0-1"]
[WhiteElo "2390"]
[BlackElo "2578"]
[TimeControl "180+1"]
[EndTime "11:43:19 PDT"]
[Termination "josiwales won on time"]

1. d4 {[%clk 0:03:00.9]} 1... d5 {[%clk 0:02:58.6]} 2. c4 {[%clk 0:03:00.3]}
2... c6 {[%clk 0:02:59]} 3. Nc3 {[%clk 0:03:00.2]} 3... Nf6 {[%clk 0:02:59.2]}
4. Nf3 {[%clk 0:02:57.6]} 4... dxc4 {[%clk 0:02:58.8]} 5. a4 {[%clk 0:02:56.8]}
5... Bf5 {[%clk 0:02:56.6]} 6. e3 {[%clk 0:02:55.7]} 6... e6 {[%clk 0:02:57.1]}
7. Bxc4 {[%clk 0:02:54.7]} 7... Bb4 {[%clk 0:02:58]} 8. O-O {[%clk 0:02:52.1]}
8... O-O {[%clk 0:02:58.9]} 9. Qb3 {[%clk 0:02:51.4]} 9... Qa5 {[%clk
0:02:48.8]} 10. Bd2 {[%clk 0:02:20.5]} 10... Nbd7 {[%clk 0:02:45.5]} 11. Rfd1
{[%clk 0:02:19.1]} 11... Nb6 {[%clk 0:02:44.3]} 12. Be2 {[%clk 0:02:11.9]} 12...
Rac8 {[%clk 0:02:43.8]} 13. Ne5 {[%clk 0:02:10.1]} 13... c5 {[%clk 0:02:39.2]}
14. dxc5 {[%clk 0:01:49.7]} 14... Qxc5 {[%clk 0:02:32.4]} 15. Nd3 {[%clk
0:01:49.2]} 15... Bxd3 {[%clk 0:02:26.5]} 16. Bxd3 {[%clk 0:01:50.1]} 16... Rfd8
{[%clk 0:02:26.7]} 17. Ne4 {[%clk 0:01:44.4]} 17... Nxe4 {[%clk 0:01:28.8]} 18.
Bxb4 {[%clk 0:01:40.8]} 18... Qe5 {[%clk 0:01:28.3]} 19. f4 {[%clk 0:01:17.9]}
19... Qd5 {[%clk 0:01:20.8]} 20. Qxd5 {[%clk 0:01:11.6]} 20... exd5 {[%clk
0:01:20.3]} 21. Rac1 {[%clk 0:00:57.6]} 21... Nxa4 {[%clk 0:01:13.2]} 22. Rxc8
{[%clk 0:00:54.8]} 22... Rxc8 {[%clk 0:01:14.1]} 23. Bb5 {[%clk 0:00:53.7]}
23... Nxb2 {[%clk 0:00:47.3]} 24. Rxd5 {[%clk 0:00:51.2]} 24... Rc1+ {[%clk
0:00:46.8]} 25. Bf1 {[%clk 0:00:49.4]} 25... h6 {[%clk 0:00:46.9]} 26. Rd4
{[%clk 0:00:44.1]} 26... f5 {[%clk 0:00:23.4]} 27. g4 {[%clk 0:00:36.8]} 27...
Nd1 {[%clk 0:00:20]} 28. Rd3 {[%clk 0:00:19.7]} 28... fxg4 {[%clk 0:00:19.7]}
29. Ba3 {[%clk 0:00:12.9]} 29... Ra1 {[%clk 0:00:18.3]} 30. Be7 {[%clk
0:00:06.1]} 30... Ndf2 {[%clk 0:00:15.8]} 31. Rd8+ {[%clk 0:00:04.8]} 31... Kh7
{[%clk 0:00:15]} 32. Bh4 {[%clk 0:00:04.8]} 32... Nh3+ {[%clk 0:00:14.6]} 33.
Kg2 {[%clk 0:00:04.2]} 33... Ra2+ {[%clk 0:00:14.7]} 34. Kh1 {[%clk 0:00:04.6]}
34... Ra1 {[%clk 0:00:13.7]} 35. Kg2 {[%clk 0:00:04.5]} 35... Ra2+ {[%clk
0:00:13.1]} 36. Kh1 {[%clk 0:00:04.5]} 36... Nef2+ {[%clk 0:00:13.4]} 37. Kg2
{[%clk 0:00:03.9]} 37... Nd1+ {[%clk 0:00:09.5]} 38. Kg3 {[%clk 0:00:03.7]}
38... Ndf2 {[%clk 0:00:05.1]} 39. Bg2 {[%clk 0:00:01.3]} 39... g5 {[%clk
0:00:03.7]} 0-1

[Event "*** Titled Tuesday Blitz"]
[Site "Chess.com"]
[Date "2020.04.14"]
[Round "9"]
[White "StockholmMissile"]
[Black "queen_iryna"]
[Result "1-0"]
[WhiteElo "2413"]
[BlackElo "2223"]
[TimeControl "180+1"]
[EndTime "11:43:19 PDT"]
[Termination "StockholmMissile won by resignation"]

1. d4 {[%clk 0:03:00.9]} 1... d5 {[%clk 0:02:59.7]} 2. c4 {[%clk 0:02:59.4]}
2... c6 {[%clk 0:02:59.9]} 3. Nf3 {[%clk 0:02:58.9]} 3... Nf6 {[%clk 0:02:59.4]}
4. Nc3 {[%clk 0:02:59.1]} 4... e6 {[%clk 0:02:58.7]} 5. e3 {[%clk 0:02:58.8]}
5... Nbd7 {[%clk 0:02:58.5]} 6. Bd3 {[%clk 0:02:58.5]} 6... dxc4 {[%clk
0:02:57.6]} 7. Bxc4 {[%clk 0:02:59.4]} 7... b5 {[%clk 0:02:57.8]} 8. Bd3 {[%clk
0:02:59.7]} 8... Bb7 {[%clk 0:02:57.8]} 9. a3 {[%clk 0:03:00]} 9... a6 {[%clk
0:02:57.2]} 10. b4 {[%clk 0:02:59.4]} 10... Be7 {[%clk 0:02:54.3]} 11. O-O
{[%clk 0:02:58.7]} 11... O-O {[%clk 0:02:54.3]} 12. Rb1 {[%clk 0:02:56.1]} 12...
a5 {[%clk 0:02:54.1]} 13. e4 {[%clk 0:02:53.1]} 13... axb4 {[%clk 0:02:53.3]}
14. axb4 {[%clk 0:02:52.4]} 14... Nb6 {[%clk 0:02:52.6]} 15. Qc2 {[%clk
0:02:48.2]} 15... g6 {[%clk 0:02:42]} 16. Rd1 {[%clk 0:02:46.1]} 16... Na4
{[%clk 0:02:39.6]} 17. Ne2 {[%clk 0:02:42.1]} 17... Nd7 {[%clk 0:02:21]} 18. Ng3
{[%clk 0:02:33.7]} 18... Bf6 {[%clk 0:02:19.2]} 19. e5 {[%clk 0:02:31.5]} 19...
Bg7 {[%clk 0:02:17.9]} 20. Ne4 {[%clk 0:02:31.8]} 20... Ndb6 {[%clk 0:02:16.2]}
21. Bg5 {[%clk 0:02:26.3]} 21... Qc7 {[%clk 0:02:05.3]} 22. h4 {[%clk
0:02:24.9]} 22... Nd5 {[%clk 0:02:00]} 23. Qd2 {[%clk 0:02:19.5]} 23... f6
{[%clk 0:01:43.4]} 24. exf6 {[%clk 0:02:18.4]} 24... Nxf6 {[%clk 0:01:43.1]} 25.
Nxf6+ {[%clk 0:02:15]} 25... Bxf6 {[%clk 0:01:43.1]} 26. Bxf6 {[%clk 0:02:14.2]}
26... Rxf6 {[%clk 0:01:44]} 27. Ne5 {[%clk 0:02:12.6]} 27... Nb6 {[%clk
0:01:40.9]} 28. Be4 {[%clk 0:02:08]} 28... Nd7 {[%clk 0:01:37.1]} 29. Re1 {[%clk
0:02:05.6]} 29... Nxe5 {[%clk 0:01:35.6]} 30. dxe5 {[%clk 0:02:05.3]} 30... Rf7
{[%clk 0:01:32.7]} 31. h5 {[%clk 0:02:05.3]} 31... gxh5 {[%clk 0:01:26]} 32. Rb3
{[%clk 0:02:00.7]} 32... Rg7 {[%clk 0:01:25.3]} 33. Rd3 {[%clk 0:01:55.2]} 33...
Rf8 {[%clk 0:01:23.3]} 34. Rd6 {[%clk 0:01:54.1]} 34... Qf7 {[%clk 0:01:10.2]}
35. f3 {[%clk 0:01:49]} 35... h4 {[%clk 0:00:59.8]} 36. Qh6 {[%clk 0:01:48.4]}
36... h3 {[%clk 0:00:53]} 37. Qxh3 {[%clk 0:01:45.2]} 37... Qf4 {[%clk
0:00:52.1]} 38. Qxe6+ {[%clk 0:01:40.8]} 38... Kh8 {[%clk 0:00:48.3]} 39. Qh3
{[%clk 0:01:24.1]} 39... Qxe5 {[%clk 0:00:41.7]} 40. Rh6 {[%clk 0:01:22.9]}
40... Rff7 {[%clk 0:00:38.4]} 41. Rd1 {[%clk 0:01:22.6]} 41... Qg5 {[%clk
0:00:34.7]} 42. Kh1 {[%clk 0:01:10.2]} 42... Kg8 {[%clk 0:00:30.1]} 43. Rhd6
{[%clk 0:01:07.5]} 43... Rf8 {[%clk 0:00:28.1]} 44. Rd7 {[%clk 0:00:55]} 44...
Bc8 {[%clk 0:00:28]} 45. Rxg7+ {[%clk 0:00:51.5]} 45... Qxg7 {[%clk 0:00:28.9]}
46. Qh4 {[%clk 0:00:47.5]} 46... Bd7 {[%clk 0:00:28.5]} 47. Qxh7+ {[%clk
0:00:41.7]} 47... Qxh7+ {[%clk 0:00:28]} 48. Bxh7+ {[%clk 0:00:42.6]} 48... Kxh7
{[%clk 0:00:28.2]} 49. Rxd7+ {[%clk 0:00:43.2]} 49... Kg8 {[%clk 0:00:27]} 50.
Rc7 {[%clk 0:00:39.9]} 50... Rf4 {[%clk 0:00:26.9]} 51. Rxc6 {[%clk 0:00:39.7]}
51... Rxb4 {[%clk 0:00:27.4]} 52. Kh2 {[%clk 0:00:39.7]} 52... Rb1 {[%clk
0:00:27.2]} 53. Rc7 {[%clk 0:00:39.8]} 53... b4 {[%clk 0:00:27.4]} 54. Rb7
{[%clk 0:00:40.1]} 54... b3 {[%clk 0:00:27.7]} 55. Kh3 {[%clk 0:00:40]} 55... b2
{[%clk 0:00:27.8]} 56. Kg4 {[%clk 0:00:39.6]} 56... Kf8 {[%clk 0:00:26.6]} 57.
f4 {[%clk 0:00:39]} 57... Kg8 {[%clk 0:00:26.3]} 58. Kg5 {[%clk 0:00:39.1]}
58... Kf8 {[%clk 0:00:24.6]} 59. f5 {[%clk 0:00:38.8]} 59... Ke8 {[%clk
0:00:20.1]} 60. Kg6 {[%clk 0:00:38.3]} 60... Kf8 {[%clk 0:00:19.1]} 61. f6
{[%clk 0:00:38.3]} 61... Ke8 {[%clk 0:00:18.6]} 62. f7+ {[%clk 0:00:38.4]} 1-0

[Event "*** Titled Tuesday Blitz"]
[Site "Chess.com"]
[Date "2020.04.14"]
[Round "9"]
[White "Fandorine"]
[Black "Vincent_Vega95"]
[Result "1-0"]
[WhiteElo "2921"]
[BlackElo "2789"]
[TimeControl "180+1"]
[EndTime "11:43:20 PDT"]
[Termination "Fandorine won by resignation"]

1. e4 {[%clk 0:03:00.9]} 1... c5 {[%clk 0:02:59.7]} 2. Nf3 {[%clk 0:03:01]} 2...
Nc6 {[%clk 0:02:59.9]} 3. Bb5 {[%clk 0:02:59.4]} 3... Nf6 {[%clk 0:02:59.8]} 4.
Nc3 {[%clk 0:02:58.1]} 4... Qc7 {[%clk 0:02:59.9]} 5. O-O {[%clk 0:02:57.5]}
5... Nd4 {[%clk 0:02:55]} 6. Re1 {[%clk 0:02:56.4]} 6... a6 {[%clk 0:02:55]} 7.
Bf1 {[%clk 0:02:55.7]} 7... Ng4 {[%clk 0:02:53.4]} 8. g3 {[%clk 0:02:54.6]} 8...
Nxf3+ {[%clk 0:02:53.4]} 9. Qxf3 {[%clk 0:02:55.5]} 9... Ne5 {[%clk 0:02:54]}
10. Qd1 {[%clk 0:02:55.3]} 10... e6 {[%clk 0:02:54.4]} 11. Bg2 {[%clk
0:02:39.9]} 11... d6 {[%clk 0:02:53.7]} 12. d3 {[%clk 0:02:33]} 12... Be7 {[%clk
0:02:52.9]} 13. f4 {[%clk 0:02:32.7]} 13... Nc6 {[%clk 0:02:52.8]} 14. Be3
{[%clk 0:02:15.9]} 14... O-O {[%clk 0:02:51.2]} 15. Qd2 {[%clk 0:02:16.2]} 15...
b5 {[%clk 0:02:47.7]} 16. a3 {[%clk 0:02:16.4]} 16... Rb8 {[%clk 0:02:47.6]} 17.
Rad1 {[%clk 0:02:16.9]} 17... Rd8 {[%clk 0:02:43.9]} 18. Qf2 {[%clk 0:02:14.6]}
18... Bf6 {[%clk 0:02:18.8]} 19. e5 {[%clk 0:02:05.1]} 19... dxe5 {[%clk
0:02:18.7]} 20. Ne4 {[%clk 0:01:59.6]} 20... Be7 {[%clk 0:02:14.8]} 21. Bxc5
{[%clk 0:01:54.1]} 21... exf4 {[%clk 0:02:10.2]} 22. gxf4 {[%clk 0:01:42.5]}
22... Bb7 {[%clk 0:01:53.7]} 23. c3 {[%clk 0:01:38.6]} 23... Ba8 {[%clk
0:01:52.4]} 24. d4 {[%clk 0:01:30.9]} 24... Na5 {[%clk 0:01:49.2]} 25. Bxe7
{[%clk 0:01:27.4]} 25... Qxe7 {[%clk 0:01:46.9]} 26. f5 {[%clk 0:01:27.6]} 26...
exf5 {[%clk 0:01:36.8]} 27. Qxf5 {[%clk 0:01:26.9]} 27... Re8 {[%clk 0:01:32.5]}
28. Ng5 {[%clk 0:01:17.1]} 28... g6 {[%clk 0:00:41.7]} 29. Rxe7 {[%clk
0:01:16.4]} 29... gxf5 {[%clk 0:00:41.5]} 30. Rde1 {[%clk 0:01:16.7]} 30... Rxe7
{[%clk 0:00:40.1]} 31. Rxe7 {[%clk 0:01:17]} 31... Bxg2 {[%clk 0:00:40.3]} 32.
Kxg2 {[%clk 0:01:17.9]} 32... Rb7 {[%clk 0:00:23.9]} 33. Rxb7 {[%clk 0:00:57.9]}
33... Nxb7 {[%clk 0:00:24.8]} 34. Kg3 {[%clk 0:00:58.4]} 34... Kg7 {[%clk
0:00:24.3]} 35. Kf4 {[%clk 0:00:56.9]} 35... h6 {[%clk 0:00:24.6]} 36. Nf3
{[%clk 0:00:55.7]} 36... Kf6 {[%clk 0:00:24.9]} 37. Ne5 {[%clk 0:00:53.4]} 37...
Nd6 {[%clk 0:00:24.2]} 38. b3 {[%clk 0:00:48.5]} 38... a5 {[%clk 0:00:23.5]} 39.
c4 {[%clk 0:00:26.4]} 39... a4 {[%clk 0:00:23.6]} 40. bxa4 {[%clk 0:00:26.9]}
40... bxc4 {[%clk 0:00:20.3]} 41. a5 {[%clk 0:00:26.5]} 41... c3 {[%clk
0:00:20.6]} 42. a6 {[%clk 0:00:23.5]} 42... c2 {[%clk 0:00:21]} 43. Nd3 {[%clk
0:00:23.7]} 43... Nb5 {[%clk 0:00:19.2]} 44. a4 {[%clk 0:00:21.4]} 44... Na7
{[%clk 0:00:19.2]} 45. d5 {[%clk 0:00:19.6]} 45... h5 {[%clk 0:00:19.4]} 46. h4
{[%clk 0:00:19.1]} 46... Nc8 {[%clk 0:00:19.8]} 47. Ke3 {[%clk 0:00:18.1]} 47...
Ke7 {[%clk 0:00:20.1]} 48. Kd2 {[%clk 0:00:16.4]} 48... Kd6 {[%clk 0:00:20.4]}
49. Nf4 {[%clk 0:00:16.8]} 49... Ke5 {[%clk 0:00:17.7]} 50. Kxc2 {[%clk
0:00:12.9]} 1-0

[Event "*** Titled Tuesday Blitz"]
[Site "Chess.com"]
[Date "2020.04.14"]
[Round "9"]
[White "jwillz14"]
[Black "DraskovicL"]
[Result "0-1"]
[WhiteElo "2386"]
[BlackElo "2556"]
[TimeControl "180+1"]
[EndTime "11:43:20 PDT"]
[Termination "DraskovicL won by checkmate"]

1. Nf3 {[%clk 0:03:00.9]} 1... d5 {[%clk 0:02:51.4]} 2. g3 {[%clk 0:03:00.8]}
2... c6 {[%clk 0:02:47.9]} 3. Bg2 {[%clk 0:03:01.1]} 3... Bg4 {[%clk 0:02:48.1]}
4. c4 {[%clk 0:03:01.6]} 4... e6 {[%clk 0:02:47.3]} 5. Ne5 {[%clk 0:03:01.5]}
5... Bf5 {[%clk 0:02:45.3]} 6. cxd5 {[%clk 0:03:01.4]} 6... exd5 {[%clk
0:02:45.4]} 7. Qb3 {[%clk 0:02:59.6]} 7... Qb6 {[%clk 0:02:44.9]} 8. O-O {[%clk
0:02:58.1]} 8... Qxb3 {[%clk 0:02:43.9]} 9. axb3 {[%clk 0:02:58.1]} 9... Bd6
{[%clk 0:02:44.4]} 10. Nf3 {[%clk 0:02:52.3]} 10... Nf6 {[%clk 0:02:42.7]} 11.
Nc3 {[%clk 0:02:50.7]} 11... O-O {[%clk 0:02:42.7]} 12. d3 {[%clk 0:02:45.5]}
12... Nbd7 {[%clk 0:02:42]} 13. e4 {[%clk 0:02:42.5]} 13... dxe4 {[%clk
0:02:36.1]} 14. Nd4 {[%clk 0:02:38.7]} 14... Bg6 {[%clk 0:02:33.7]} 15. dxe4
{[%clk 0:02:38.4]} 15... Nc5 {[%clk 0:02:31.2]} 16. f3 {[%clk 0:02:29.7]} 16...
Be5 {[%clk 0:02:20.6]} 17. Nce2 {[%clk 0:02:28.7]} 17... Rfd8 {[%clk 0:02:12.1]}
18. Be3 {[%clk 0:02:28.5]} 18... Ne6 {[%clk 0:01:51.9]} 19. Rfd1 {[%clk
0:02:26.1]} 19... Nxd4 {[%clk 0:01:50.6]} 20. Nxd4 {[%clk 0:02:27]} 20... a6
{[%clk 0:01:39.3]} 21. b4 {[%clk 0:02:18.3]} 21... Rd7 {[%clk 0:01:33]} 22. Rd2
{[%clk 0:02:10.4]} 22... Rad8 {[%clk 0:01:32.2]} 23. Rad1 {[%clk 0:02:10.7]}
23... Bd6 {[%clk 0:01:22.1]} 24. Nc2 {[%clk 0:02:04.4]} 24... Be7 {[%clk
0:01:20.4]} 25. Bd4 {[%clk 0:01:42.5]} 25... Ne8 {[%clk 0:01:12.8]} 26. Bh3
{[%clk 0:01:41.5]} 26... Rd6 {[%clk 0:01:06.2]} 27. Kf2 {[%clk 0:01:35.8]} 27...
Nc7 {[%clk 0:01:03.9]} 28. Ke3 {[%clk 0:01:35.4]} 28... Nb5 {[%clk 0:00:52.5]}
29. Bc5 {[%clk 0:01:34.6]} 29... Rxd2 {[%clk 0:00:52.3]} 30. Rxd2 {[%clk
0:01:35.5]} 30... Rxd2 {[%clk 0:00:52.5]} 31. Kxd2 {[%clk 0:01:36.1]} 31... Bd8
{[%clk 0:00:33.7]} 32. Be3 {[%clk 0:01:26.2]} 32... f6 {[%clk 0:00:33.5]} 33.
Bc8 {[%clk 0:01:24.5]} 33... Nd6 {[%clk 0:00:33.1]} 34. Be6+ {[%clk 0:01:18.5]}
34... Bf7 {[%clk 0:00:33.3]} 35. Bxf7+ {[%clk 0:01:18.7]} 35... Kxf7 {[%clk
0:00:34.2]} 36. Kd3 {[%clk 0:01:19]} 36... Ke6 {[%clk 0:00:33.6]} 37. Nd4+
{[%clk 0:01:18.8]} 37... Kd7 {[%clk 0:00:33.9]} 38. Nb3 {[%clk 0:01:19.7]} 38...
b6 {[%clk 0:00:30.8]} 39. Nd2 {[%clk 0:01:19.9]} 39... Nc8 {[%clk 0:00:25.7]}
40. f4 {[%clk 0:01:17.5]} 40... Be7 {[%clk 0:00:25.4]} 41. Kc3 {[%clk
0:01:14.3]} 41... Kc7 {[%clk 0:00:24.1]} 42. Nc4 {[%clk 0:01:13.8]} 42... b5
{[%clk 0:00:19.1]} 43. Na5 {[%clk 0:01:13.7]} 43... Nd6 {[%clk 0:00:18.5]} 44.
Kd3 {[%clk 0:01:12]} 44... Nb7 {[%clk 0:00:18.7]} 45. Nb3 {[%clk 0:01:10.6]}
45... Bxb4 {[%clk 0:00:18.2]} 46. e5 {[%clk 0:01:10.8]} 46... Be7 {[%clk
0:00:17.8]} 47. Ke4 {[%clk 0:01:09]} 47... g6 {[%clk 0:00:15.6]} 48. g4 {[%clk
0:01:07.7]} 48... c5 {[%clk 0:00:15.5]} 49. exf6 {[%clk 0:01:05.8]} 49... Bxf6
{[%clk 0:00:16.4]} 50. Bxc5 {[%clk 0:01:05.6]} 50... Bxb2 {[%clk 0:00:15.4]} 51.
Bd4 {[%clk 0:01:00.3]} 51... Bxd4 {[%clk 0:00:14.5]} 52. Kxd4 {[%clk 0:01:01.2]}
52... Kd6 {[%clk 0:00:13.1]} 53. h4 {[%clk 0:00:57.3]} 53... a5 {[%clk
0:00:13.2]} 54. Nd2 {[%clk 0:00:57.5]} 54... Nc5 {[%clk 0:00:13]} 55. h5 {[%clk
0:00:55.1]} 55... gxh5 {[%clk 0:00:12.5]} 56. gxh5 {[%clk 0:00:56]} 56... a4
{[%clk 0:00:13.4]} 57. Nb1 {[%clk 0:00:54.5]} 57... b4 {[%clk 0:00:13]} 58. Nd2
{[%clk 0:00:55]} 58... a3 {[%clk 0:00:12.7]} 59. Nc4+ {[%clk 0:00:55.9]} 59...
Kc6 {[%clk 0:00:11.9]} 60. Ne5+ {[%clk 0:00:56]} 60... Kb5 {[%clk 0:00:12.1]}
61. f5 {[%clk 0:00:56.2]} 61... a2 {[%clk 0:00:12.2]} 62. Kd5 {[%clk 0:00:54.7]}
62... a1=Q {[%clk 0:00:12.3]} 63. f6 {[%clk 0:00:55.6]} 63... Qd1+ {[%clk
0:00:09.5]} 64. Nd3 {[%clk 0:00:56]} 64... Qxd3+ {[%clk 0:00:09.3]} 65. Ke5
{[%clk 0:00:56.9]} 65... Qe4+ {[%clk 0:00:09.1]} 66. Kd6 {[%clk 0:00:57.8]}
66... Qe6+ {[%clk 0:00:09.3]} 67. Kc7 {[%clk 0:00:57.9]} 67... Qd7+ {[%clk
0:00:09.7]} 68. Kb8 {[%clk 0:00:57.7]} 68... Qb7# {[%clk 0:00:10.6]} 0-1